[Event "98th Caplin Hastings Masters 2024-25"]
[Site "Hastings"]
[Date "2024.12.28"]
[Round "1.12"]
[White "Kolani, Arjun"]
[Black "Kovchan, Alexander"]
[Result "0-1"]
[ECO "B90"]
[WhiteElo "2131"]
[BlackElo "2455"]
[Annotator "TA"]
[PlyCount "78"]
[EventDate "2024.12.23"]
[EventType "swiss"]
[EventCountry "ENG"]
[SourceTitle "playchess.com"]
[Source "ChessBase"]
[SourceQuality "1"]
[TimeControl "5400+30"]

{[%evp 15,78,10,14,13,18,18,24,28,27,22,45,42,42,34,55,49,36,32,58,43,34,45,98,0,0,-8,-11,-20,0,-13,0,0,0,0,0,0,0,-39,-26,-38,-50,-35,-34,-62,-62,-61,-61,-61,-62,-58,-29,-78,-61,-56,-53,-56,-64,-56,-58,-409,-402,-400,-422,-754,-727]} 1. e4 {[%emt 0:00:08]} c5 {[%emt 0:00:08]} 2. Nf3 {[%emt 0:00:08]} d6 {[%emt 0:00:06]} 3. d4 {[%emt 0:00:10]} cxd4 {[%emt 0:00:07]} 4. Nxd4 {[%emt 0:00:04]} Nf6 {[%emt 0:00:07]} 5. Nc3 {[%emt 0:00:10]} a6 {[%emt 0:00:05]} 6. f3 {[%emt 0:00:31]} e5 {[%emt 0:00:22]} 7. Nb3 {[%emt 0:00:06]} Be6 {[%emt 0:00:15]} 8. Be3 {[%emt 0:00:31]} h5 {[%emt 0:00:12]} 9. Nd5 {[%emt 0:00:56]} Bxd5 {[%emt 0:02:59]} 10. exd5 {[%emt 0:00:10]} g6 {[%emt 0:03:08]} 11. Qd2 {[%emt 0:01:35] White has an edge.} Qc7 {[%emt 0:01:48]} 12. Be2 {[%emt 0:05:49]} Nbd7 {[%emt 0:00:40]} 13. Rc1 {[%emt 0:13:44]} b6 {[%emt 0:09:05]} 14. c4 {[%emt 0:05:56]} Bg7 {[%emt 0:01:45]} 15. O-O {[%emt 0:01:01][%cal Bh1f1,Bf1f2,Bf2h2][%mdl 32]} O-O {[%emt 0:01:04]} 16. h3 {[%emt 0:20:41]} Rae8 {[%emt 0:07:48]} 17. g4 {[%emt 0:08:41]} hxg4 {[%emt 0:06:32]} 18. hxg4 {[%emt 0:00:17]} Nh7 {[%emt 0:01:21] [#]} (18... a5 $14) 19. Bd3 {[%emt 0:05:04]} ({White should try} 19. Rf2 $1 $16) 19... Qd8 {[%emt 0:13:58]} 20. Rf2 {[%emt 0:04:21]} Bf6 {[%emt 0:02:30]} 21. Rh2 {[%emt 0:04:54]} (21. Kg2 {simplifies} Bg5 22. Rh1 Bxe3 23. Qxe3 Qg5 24. Qxg5 Nxg5 25. Re2) 21... Bg5 {[%emt 0:00:27]} 22. Kf2 {[%emt 0:07:03]} Bxe3+ {[%emt 0:15:17]} 23. Qxe3 {[%emt 0:00:06]} Qg5 {[%emt 0:01:08]} 24. Rch1 {[%emt 0:04:29]} Ndf6 {[%emt 0:05:09]} 25. Nd2 {[%emt 0:03:56]} (25. Qxb6 $2 {too greedy.} e4 26. Qe3 exd3 27. Qxg5 Nxg5 $19) 25... Qf4 {[%emt 0:01:49] Really sharp!} 26. Qxf4 {[%emt 0:06:04]} exf4 {[%emt 0:00:03]} 27. Re1 {[%emt 0:00:29]} Rxe1 {[%emt 0:02:38]} 28. Kxe1 {[%emt 0:00:03]} Ng5 {[%emt 0:00:10]} 29. Re2 {[%emt 0:04:27]} Nd7 {[%emt 0:00:52]} 30. Re7 {[%emt 0:00:35]} Rd8 {[%emt 0:00:02]} 31. Kf2 {[%emt 0:00:53]} Kg7 {[%emt 0:02:35]} 32. Re1 {[%emt 0:02:37]} a5 {[%emt 0:03:13]} 33. a3 {[%emt 0:00:30]} (33. Nb3 $11) 33... Ne5 {[%emt 0:03:18]} 34. Be2 {[%emt 0:00:14]} Rh8 {[%emt 0:01:24][%cal Oe5d3] Strongly threatening ...Nd3+!} 35. Kg2 {[%emt 0:00:59]} Re8 {[%emt 0:00:53][%cal Oe5d3] aiming for ...Nd3!} 36. Kf2 {[%emt 0:00:32]} a4 {[%emt 0:02:06]} 37. Nb1 $2 {[%emt 0:00:26][%mdl 8192] [#]} ({Better is} 37. b4 $15) 37... Ngxf3 $1 $19 {[%emt 0:00:25][%mdl 512]} 38. Rh1 {[%emt 0:00:38]} Nd4 {[%emt 0:00:56] Threatens to win with ...f3. Excellent horsemanship.} ({And not} 38... Nxg4+ 39. Kxf3 f5 40. Nc3 $15) 39. Bd1 {[%emt 0:00:29]} (39. g5 $142) 39... Nd3+ {[%emt 0:00:37] Weighted Error Value: White=0.42/Black=0.05 (flawless) .  Loses game:     	White=1     	---        Mistake:       	White=3     	Black=1      Inaccurate:     	White=2     	Black=2      OK:         	White=10    	Black=19} 0-1

[Event "98th Caplin Hastings Masters 2024-25"]
[Site "Hastings"]
[Date "2024.12.28"]
[Round "1.13"]
[White "Gormally, Daniel W"]
[Black "Brown, Thomas"]
[Result "1-0"]
[ECO "E70"]
[WhiteElo "2424"]
[BlackElo "2118"]
[Annotator "TA"]
[PlyCount "69"]
[EventDate "2024.12.23"]
[EventType "swiss"]
[EventCountry "ENG"]
[SourceTitle "playchess.com"]
[Source "ChessBase"]
[SourceQuality "1"]
[TimeControl "5400+30"]

{[%evp 12,69,37,33,43,43,58,49,62,42,62,36,55,56,56,45,41,-21,0,0,24,-16,18,-12,0,2,97,99,133,-66,-59,-65,-64,-67,-30,-27,-25,-56,-69,-71,-93,-72,-60,-63,-75,-79,-83,-50,-39,-27,-29,-25,0,0,93,89,29986,29987,5389,2306]} 1. d4 {[%emt 0:00:06]} Nf6 {[%emt 0:00:21]} 2. c4 {[%emt 0:00:15]} g6 {[%emt 0:00:07]} 3. Nc3 {[%emt 0:00:18]} Bg7 {[%emt 0:00:08]} 4. e4 {[%emt 0:00:07]} d6 {[%emt 0:00:05]} 5. Bd3 {[%emt 0:00:57]} O-O {[%emt 0:02:07]} 6. Nge2 {[%emt 0:00:06]} Nc6 {[%emt 0:01:52]} 7. O-O {[%emt 0:00:26]} a5 {[%emt 0:12:15]} 8. f3 {[%emt 0:02:44]} e5 {[%emt 0:04:47]} 9. d5 {[%emt 0:00:06]} Nd4 {[%emt 0:00:07]} 10. Be3 {[%emt 0:05:48]} c5 {[%emt 0:01:59][%cal Bc7c5,Bc5d4][%mdl 32]} 11. Kh1 {[%emt 0:00:00]} h5 {[%emt 0:03:48]} 12. Bg5 {[%emt 0:05:09]} Qd7 {[%emt 0:04:09]} 13. Nxd4 {[%emt 0:07:21]} cxd4 {[%emt 0:02:46]} 14. Ne2 {[%emt 0:04:12]} (14. Nb5 $14) 14... Nh7 {[%emt 0:04:34]} 15. Bd2 {[%emt 0:03:01]} Qe7 {[%emt 0:05:17]} 16. Qc2 {[%emt 0:05:32]} Bd7 {[%emt 0:05:02]} 17. Rac1 {[%emt 0:04:56]} b6 {[%emt 0:02:25]} 18. f4 {[%emt 0:01:04]} f5 {[%emt 0:05:28]} (18... Rfc8 $11) 19. Rce1 $1 $16 {[%emt 0:09:54]} Rae8 {[%emt 0:10:31]} 20. Ng1 $2 {[%emt 0:04:58]} (20. exf5 $1 $16 {[%cal Oe2d4] Threatens to win with Nxd4!.} e4 21. fxg6 exd3 (21... Nf6 22. Nxd4 exd3 23. Qxd3 $16) 22. gxh7+ Kh8 23. Qxd3) 20... Nf6 $1 $15 {[%emt 0:03:12]} 21. fxe5 {[%emt 0:02:10]} (21. exf5 $2 {too greedy.} e4 22. Qc1 Bxf5 $19) 21... dxe5 {[%emt 0:00:26] Hoping for ...Nxe4.} 22. Bg5 $1 {[%emt 0:01:35]} f4 {[%emt 0:03:20][%cal Bf5f4,Bf4g3,Bg3h2][%mdl 32]} 23. Nf3 {[%emt 0:05:08][%cal Of3e5]} Qc5 $1 {[%emt 0:05:32]} 24. g3 {[%emt 0:06:20]} fxg3 {[%emt 0:01:45]} 25. Qg2 {[%emt 0:00:40] [#] Repels Bh3} gxh2 $1 {[%emt 0:04:34]} 26. Nh4 {[%emt 0:02:00][%cal Og5f6]} Ng4 {[%emt 0:02:13]} 27. Nxg6 {[%emt 0:00:46]} Rxf1+ {[%emt 0:00:28]} 28. Rxf1 {[%emt 0:00:11] [#]} Qd6 $1 {[%emt 0:01:02]} 29. Nh4 {[%emt 0:00:09]} Rf8 {[%emt 0:02:57]} 30. Nf5 {[%emt 0:00:09] Prevents Bh6.} Bxf5 {[%emt 0:01:22]} 31. exf5 {[%emt 0:00:04]} Bh6 {[%emt 0:03:36]} (31... Bf6 $5 32. Bh6 Rf7 $15) 32. Bh4 {[%emt 0:02:53] This pair of bishops is nice.} Kh8 {[%emt 0:01:52]} (32... Bf4 $11) 33. f6 $1 $16 {[%emt 0:00:50] Chess con chili.} Nxf6 $2 {[%emt 0:02:18][%mdl 8192]} (33... Bf4 $16) 34. Qg6 $1 {[%emt 0:02:11]} (34. Qxh2 Ng4 35. Rxf8+ Qxf8 $17) 34... Ne4 {[%emt 0:03:35]} 35. Rxf8+ {[%emt 0:00:28]} (35. Bxe4 Rxf1+ 36. Kxh2 Qxg6 37. Bxg6 Rf4 $19) 1-0

[Event "98th Caplin Hastings Masters 2024-25"]
[Site "Hastings"]
[Date "2024.12.28"]
[Round "1.14"]
[White "Golding, Alex"]
[Black "Dette, Jan"]
[Result "1-0"]
[ECO "B12"]
[WhiteElo "2405"]
[BlackElo "2102"]
[Annotator "TA"]
[PlyCount "67"]
[EventDate "2024.12.23"]
[EventType "swiss"]
[EventCountry "ENG"]
[SourceTitle "playchess.com"]
[Source "ChessBase"]
[SourceQuality "1"]
[TimeControl "5400+30"]

{[%evp 9,67,22,21,10,23,14,23,8,23,23,24,21,38,41,47,39,34,34,28,13,0,27,14,8,59,50,52,35,88,65,74,49,53,51,47,47,55,47,72,47,71,72,70,0,51,58,76,89,122,125,137,127,128,128,210,209,1464,1409,29961,512]} 1. e4 {[%emt 0:00:38]} c6 {[%emt 0:00:09]} 2. d4 {[%emt 0:02:56]} d5 {[%emt 0:00:07]} 3. e5 {[%emt 0:00:26]} c5 {[%emt 0:00:31]} 4. dxc5 {[%emt 0:00:28]} e6 {[%emt 0:00:08]} 5. Nf3 {[%emt 0:02:08]} Bxc5 {[%emt 0:05:32]} 6. Bd3 {[%emt 0:00:20]} Nc6 {[%emt 0:04:57]} 7. O-O {[%emt 0:02:00]} Nge7 {[%emt 0:00:33]} 8. Nbd2 {[%emt 0:03:00]} Ng6 {[%emt 0:03:48]} 9. Nb3 {[%emt 0:00:43] And now Bxg6 would win.} Bb6 {[%emt 0:01:14]} 10. Re1 {[%emt 0:09:43]} Qc7 {[%emt 0:03:04][%cal Rc6e5]} 11. Bxg6 {[%emt 0:02:39]} hxg6 {[%emt 0:01:37]} 12. c3 {[%emt 0:07:21]} Bd7 {[%emt 0:03:44]} 13. a4 {[%emt 0:02:10]} a6 {[%emt 0:01:33]} 14. Be3 {[%emt 0:07:30]} Bxe3 {[%emt 0:06:52]} 15. Rxe3 {[%emt 0:00:09]} Rh5 {[%emt 0:01:43][%cal Rc6e5]} 16. Qe2 {[%emt 0:02:45]} Ne7 {[%emt 0:09:02]} (16... f6 $11) 17. Nbd4 $14 {[%emt 0:01:52]} Rc8 {[%emt 0:02:47]} 18. g4 {[%emt 0:03:05]} Rh6 {[%emt 0:04:03]} (18... Rh8 $14) 19. Ng5 $16 {[%emt 0:01:22] A dynamic duo of knights.} Nc6 $1 {[%emt 0:01:16]} 20. Qf3 {[%emt 0:02:19]} Nd8 $1 {[%emt 0:04:55]} (20... Nxe5 $2 21. Rxe5 f6 22. Rae1 $18 (22. Ndxe6 $2 {loses.} Qxe5 23. Kf1 Bxe6 $19)) 21. h3 {[%emt 0:02:44]} Qc5 {[%emt 0:02:25]} 22. Qf4 {[%emt 0:07:05][%cal Oc3c4]} Qe7 {[%emt 0:05:38]} 23. b3 $36 {[%emt 0:01:21][%mdl 2048] White is pushing.} Rh8 {[%emt 0:10:22]} 24. Rae1 {[%emt 0:04:14]} Nc6 {[%emt 0:01:07]} 25. Rf3 {[%emt 0:01:50]} Rf8 {[%emt 0:00:26]} 26. Rfe3 {[%emt 0:06:51] White has more active pieces.} Rh8 {[%emt 0:00:59]} 27. Kg2 {[%emt 0:00:21]} Nxd4 {[%emt 0:01:37]} 28. cxd4 {[%emt 0:00:07]} b5 {[%emt 0:01:20]} 29. axb5 {[%emt 0:01:06]} (29. Rf3 Rf8 30. axb5 Bxb5 $11) 29... Bxb5 {[%emt 0:00:07]} 30. Rf3 {[%emt 0:00:27]} Rf8 {[%emt 0:00:54]} 31. Rc1 {[%emt 0:00:12]} Rxc1 {[%emt 0:05:21]} (31... Kd7 $16 32. Rfc3 (32. Nxf7 g5 $17) 32... Rc6 33. Rxc6 Bxc6) 32. Qxc1 $18 {[%emt 0:00:06]} Qa7 $2 {[%emt 0:01:07] [#]} (32... Qb7 33. Qc5 Bd7) 33. Nxe6 $1 {[%emt 0:00:53][%mdl 512] White threatens Qc8+ and mate. Black is weak on the dark squares} Rh8 {[%emt 0:02:37]} (33... Qd7 34. Nxg7+) 34. Qc8+ {[%emt 0:03:26]} 1-0

[Event "98th Caplin Hastings Masters 2024-25"]
[Site "Hastings"]
[Date "2024.12.28"]
[Round "1.15"]
[White "Patel, Zain"]
[Black "Vestby-Ellingsen, Mads"]
[Result "0-1"]
[ECO "D04"]
[WhiteElo "2099"]
[BlackElo "2383"]
[Annotator "TA"]
[PlyCount "74"]
[EventDate "2024.12.23"]
[EventType "swiss"]
[EventCountry "ENG"]
[SourceTitle "playchess.com"]
[Source "ChessBase"]
[SourceQuality "1"]
[TimeControl "5400+30"]

{[%evp 9,74,0,7,22,13,24,16,12,6,0,21,15,10,0,0,6,3,11,6,7,7,0,2,0,0,0,0,0,0,0,0,-67,-58,-53,-62,-82,-90,-161,-169,-146,-174,-185,-179,-162,-183,-179,-177,-412,-411,-834,-812,-1575,-1325,-847,-400,-707,-694,-658,0,-717,0,-919,-1033,-29995,-29996,-29998,-29999]} 1. d4 {[%emt 0:00:31]} Nf6 {[%emt 0:00:17]} 2. Nf3 {[%emt 0:01:14]} d5 {[%emt 0:00:27]} 3. e3 {[%emt 0:04:46]} c5 {[%emt 0:00:35]} 4. Nbd2 {[%emt 0:02:50]} Nc6 {[%emt 0:01:05]} 5. Bb5 {[%emt 0:01:43]} Qb6 {[%emt 0:01:06]} 6. c4 {[%emt 0:04:55]} e6 {[%emt 0:09:54]} 7. O-O {[%emt 0:08:37]} cxd4 {[%emt 0:09:11]} 8. Nxd4 {[%emt 0:08:45]} (8. Bxc6+ bxc6 9. exd4 a5 $14) 8... Bd6 {[%emt 0:03:05]} 9. cxd5 {[%emt 0:03:05]} exd5 {[%emt 0:00:18]} 10. N2f3 {[%emt 0:15:41]} O-O {[%emt 0:04:05]} 11. b3 {[%emt 0:05:23]} Nxd4 {[%emt 0:17:32]} 12. Nxd4 {[%emt 0:00:19]} Be5 {[%emt 0:00:47] aiming for ...Bxd4.} 13. Be2 {[%emt 0:03:46]} Ne4 {[%emt 0:02:01]} 14. Bb2 {[%emt 0:01:33]} Qd6 {[%emt 0:12:56]} 15. f4 {[%emt 0:05:56]} Bf6 {[%emt 0:00:20]} 16. Nb5 {[%emt 0:01:58]} (16. Bd3 {simplifies} Re8 17. Bxe4 dxe4 18. Rf2) 16... Qe7 {[%emt 0:10:48]} 17. Ba3 {[%emt 0:05:52]} Nc5 {[%emt 0:01:08]} 18. Rc1 {[%emt 0:00:50]} b6 $1 {[%emt 0:00:31]} (18... Qxe3+ $6 19. Kh1 b6 20. Nc7 $16 (20. Qxd5 $2 Qxe2 21. Qxa8 Bb7 $19)) 19. Qd2 {[%emt 0:02:00][%cal Of1e1]} (19. Qxd5 $2 Qxe3+ 20. Kh1 Qxe2 $19) 19... Re8 {[%emt 0:01:41]} 20. Bf3 {[%emt 0:02:06]} (20. Qxd5 $2 Qxe3+ 21. Kh1 Qxe2 $19) (20. Rfe1 $11) 20... Ba6 $1 $15 {[%emt 0:01:24]} (20... Qxe3+ $6 21. Qxe3 Rxe3 22. Bxd5 $14 (22. Bxc5 bxc5 23. Rfd1 Rb8 $16)) 21. Bxc5 $1 {[%emt 0:01:03]} bxc5 {[%emt 0:00:11]} 22. a4 {[%emt 0:00:24] [#]} Rad8 $1 {[%emt 0:11:29]} (22... Qxe3+ 23. Qxe3 Rxe3 24. Bxd5 $16) 23. Bxd5 {[%emt 0:02:26] [#]} (23. Rfe1 $17 {was necessary.}) 23... Bb7 $1 $19 {[%emt 0:07:43]} (23... Rxd5 $2 24. Qxd5 Rc8 (24... Qxe3+ $2 25. Kh1 $18) 25. Rcd1 $18) 24. e4 {[%emt 0:00:40][%cal Of1e1]} a6 {[%emt 0:00:10]} 25. Nc3 {[%emt 0:00:48] aiming for e5.} Bd4+ {[%emt 0:00:10] A strong pair of Bishops.} 26. Kh1 {[%emt 0:00:08]} Bxd5 {[%emt 0:00:13]} 27. Nxd5 {[%emt 0:00:59]} Qxe4 {[%emt 0:00:08]} 28. Nc7 $2 {[%emt 0:01:38]} (28. Nc3 {is the only way for White.} Qb7 29. Qc2) 28... Be3 {[%emt 0:02:42]} 29. Qa5 {[%emt 0:01:13] [#]} (29. Qc3 $142 Rd2 30. Rf3) 29... Rd2 $1 {[%emt 0:01:15][%csl Gd2][%cal Re4g2]} 30. Rg1 {[%emt 0:00:48]} (30. Qxd2 Bxd2) 30... Red8 {[%emt 0:01:08][%cal Od2g2] ( -> ...Rxg2!)} 31. Rce1 {[%emt 0:01:03]} Qd3 {[%emt 0:00:53]} (31... Qxf4 $142 32. Nxa6 Bxg1 33. Rxg1 c4 34. bxc4 Rd1) 32. Rgf1 {[%emt 0:01:40] [#]} (32. Qxa6 $142 Bxg1 (32... Qxb3 $2 33. Rgf1 $19) (32... Bxf4 33. Qc6 $15) 33. Qxd3 R2xd3 34. Kxg1) 32... Qg6 $1 {[%emt 0:00:16][%csl Gd2][%cal Rg6g2]} 33. Rg1 {[%emt 0:00:26]} Qd3 $40 {[%emt 0:00:40][%mdl 128] Black has some attack.} (33... Bxg1 34. Qxd2 Bd4 35. Qe2 $11) 34. Rgf1 {[%emt 0:00:07]} Qg6 {[%emt 0:00:46][%csl Gd2][%cal Rg6g2]} 35. Rg1 $1 {[%emt 0:00:04]} Bxf4 {[%emt 0:00:30] ( -> ...Qh6)} ({Not} 35... Bxg1 36. Qxd2 Bd4 37. Qe2 $11) 36. Qxc5 {[%emt 0:01:17]} Qh6 {[%emt 0:00:28][%csl Gf4][%cal Rh6h2]} (36... Rc2 37. Qe7 Qd6 (37... Bxc7 38. Qe8+ Rxe8 39. Rxe8#) 38. Qe8+ Rxe8 39. Rxe8+ $14) 37. h3 {[%emt 0:01:14] [#]} Qxh3+ $3 {[%emt 0:00:10][%mdl 512]} 0-1

[Event "98th Caplin Hastings Masters 2024-25"]
[Site "Hastings"]
[Date "2024.12.28"]
[Round "1.16"]
[White "Grutter, Tim"]
[Black "Verbin, Valentina"]
[Result "1-0"]
[ECO "C07"]
[WhiteElo "2379"]
[BlackElo "2093"]
[Annotator "TA"]
[PlyCount "67"]
[EventDate "2024.12.23"]
[EventType "swiss"]
[EventCountry "ENG"]
[SourceTitle "playchess.com"]
[Source "ChessBase"]
[SourceQuality "1"]
[TimeControl "5400+30"]

{[%evp 16,67,0,9,22,36,41,6,19,6,12,9,11,6,62,66,52,50,131,130,403,422,429,444,490,502,485,448,447,439,437,413,416,405,468,474,522,545,545,539,638,468,520,526,658,685,659,639,686,675,764,622,760,754]} 1. e4 {[%emt 0:00:04]} e6 {[%emt 0:00:40]} 2. d4 {[%emt 0:00:15]} d5 {[%emt 0:00:15]} 3. Nd2 {[%emt 0:00:20]} c5 {[%emt 0:01:09]} 4. Ngf3 {[%emt 0:00:19]} cxd4 {[%emt 0:00:42]} 5. Nxd4 {[%emt 0:00:09]} Ne7 {[%emt 0:01:50]} 6. exd5 {[%emt 0:02:36]} Nxd5 {[%emt 0:02:21]} 7. N2f3 {[%emt 0:00:34]} Be7 {[%emt 0:04:04]} 8. c3 {[%emt 0:03:28]} O-O {[%emt 0:03:17]} 9. Bd3 {[%emt 0:01:16]} Bf6 {[%emt 0:05:09]} 10. O-O {[%emt 0:05:45]} e5 {[%emt 0:05:53]} 11. Nc2 {[%emt 0:05:16]} Nc6 {[%emt 0:08:28]} 12. Be4 {[%emt 0:01:53]} Be6 {[%emt 0:02:44]} 13. Qd3 {[%emt 0:10:17]} h6 {[%emt 0:03:41]} 14. Rd1 {[%emt 0:02:40][%cal Re4d5]} Qc7 {[%emt 0:03:05]} 15. Bxh6 $1 $14 {[%emt 0:15:40]} (15. Bxd5 Bxd5 16. Nd2 (16. Qxd5 $2 Rad8 $19) 16... Rad8 $17) 15... Nxc3 {[%emt 0:27:16]} 16. Bxg7 {[%emt 0:06:15]} Bxg7 {[%emt 0:03:23]} (16... Nxe4 $14 17. Bxf8 Nxf2 18. Kxf2 Qb6+ 19. Bc5 Qxc5+ 20. Ne3 Qb4) 17. Qxc3 $16 {[%emt 0:01:01]} f5 $2 {[%emt 0:01:34][%mdl 8192]} (17... Qe7 $16 {was called for.} 18. h4 Rac8) 18. Ng5 $1 $18 {[%emt 0:01:02]} fxe4 {[%emt 0:05:57]} 19. Nxe6 {[%emt 0:00:09] A dynamic duo of knights.} Qb6 {[%emt 0:00:04]} 20. Nxf8 {[%emt 0:00:29]} Rxf8 {[%emt 0:00:10]} 21. Qb3+ {[%emt 0:00:09]} ({Much less strong is} 21. Ne3 Nd4 $18) 21... Qxb3 {[%emt 0:00:56]} 22. axb3 {[%emt 0:00:04]} Nd4 {[%emt 0:01:47]} 23. Ne3 {[%emt 0:10:43]} a6 {[%emt 0:01:02]} 24. b4 {[%emt 0:02:39]} Ne2+ {[%emt 0:03:34]} 25. Kf1 {[%emt 0:01:23]} Nf4 {[%emt 0:00:05]} 26. Rd7 {[%emt 0:03:40]} Nd3 {[%emt 0:00:15]} 27. f3 {[%emt 0:00:45]} Nxb2 {[%emt 0:06:07]} 28. Ke2 {[%emt 0:01:31]} exf3+ {[%emt 0:02:44]} 29. gxf3 {[%emt 0:00:05][%cal Bg2f3,Bf3e4][%mdl 32]} Rf7 {[%emt 0:03:58]} 30. Rxf7 {[%emt 0:00:51]} Kxf7 {[%emt 0:00:04]} 31. Ra2 {[%emt 0:00:57]} e4 {[%emt 0:00:18]} 32. fxe4 {[%emt 0:00:04]} Bd4 {[%emt 0:00:58]} 33. Ra5 {[%emt 0:03:37]} Bb6 {[%emt 0:00:27]} 34. Rh5 {[%emt 0:00:49]} 1-0

[Event "98th Caplin Hastings Masters 2024-25"]
[Site "Hastings"]
[Date "2024.12.28"]
[Round "1.17"]
[White "Cheng, Louis"]
[Black "Balaji, Aaravamudhan"]
[Result "0-1"]
[ECO "C55"]
[WhiteElo "2087"]
[BlackElo "2364"]
[Annotator "ChessBase"]
[PlyCount "131"]
[EventDate "2024.12.23"]
[EventType "swiss"]
[EventCountry "ENG"]
[SourceTitle "playchess.com"]
[Source "ChessBase"]
[SourceQuality "1"]
[TimeControl "5400+30"]

1. e4 {[%emt 0:00:02]} e5 {[%emt 0:00:15]} 2. Nf3 {[%emt 0:00:08]} Nc6 {[%emt 0:00:05]} 3. Bc4 {[%emt 0:00:08]} Nf6 {[%emt 0:00:06]} 4. d3 {[%emt 0:00:06]} Be7 {[%emt 0:00:06]} 5. Nc3 {[%emt 0:00:10]} d6 {[%emt 0:02:47]} 6. a4 {[%emt 0:00:07]} O-O {[%emt 0:00:44]} 7. Bd2 {[%emt 0:03:03]} h6 {[%emt 0:02:12]} 8. h3 {[%emt 0:02:54]} Na5 {[%emt 0:03:52]} 9. Ba2 {[%emt 0:00:12]} c5 {[%emt 0:00:27]} 10. Nd5 {[%emt 0:06:35]} Nc6 {[%emt 0:02:42]} 11. O-O {[%emt 0:07:31]} Kh8 {[%emt 0:03:04]} 12. c3 {[%emt 0:06:15]} Nxd5 {[%emt 0:02:36]} 13. Bxd5 {[%emt 0:00:47]} f5 {[%emt 0:01:26]} 14. b4 {[%emt 0:03:53]} cxb4 {[%emt 0:12:02]} 15. cxb4 {[%emt 0:00:17]} Bf6 {[%emt 0:00:09]} 16. Bc3 {[%emt 0:21:42]} Ne7 {[%emt 0:02:16]} 17. Bb3 {[%emt 0:00:35]} Ng6 {[%emt 0:08:31]} 18. Re1 {[%emt 0:06:56]} Nf4 {[%emt 0:08:40]} 19. Bc2 {[%emt 0:04:55]} Qe8 {[%emt 0:10:51]} 20. Bd2 {[%emt 0:04:00]} fxe4 {[%emt 0:03:30]} 21. dxe4 {[%emt 0:00:42]} Nxh3+ {[%emt 0:05:24]} 22. gxh3 {[%emt 0:07:27]} Bxh3 {[%emt 0:00:11]} 23. Ng5 {[%emt 0:04:00]} Qg6 {[%emt 0:05:35]} 24. Ra3 {[%emt 0:00:47]} Bxg5 {[%emt 0:00:33]} 25. Bxg5 {[%emt 0:05:12]} Qxg5+ {[%emt 0:03:43]} 26. Rg3 {[%emt 0:00:07]} Qh4 {[%emt 0:00:36]} 27. Qxd6 {[%emt 0:01:55]} Qf4 {[%emt 0:03:48]} 28. Re2 {[%emt 0:04:33]} Bg4 {[%emt 0:02:10]} 29. Rd2 {[%emt 0:00:20]} Rf6 {[%emt 0:01:53]} 30. Qd3 {[%emt 0:00:57]} Be6 {[%emt 0:05:55]} 31. b5 {[%emt 0:01:35]} Raf8 {[%emt 0:00:59]} 32. Bd1 {[%emt 0:01:12]} Bc4 {[%emt 0:02:50]} 33. Qe3 {[%emt 0:01:12]} Qxe3 {[%emt 0:04:25]} 34. Rxe3 {[%emt 0:00:06]} Kh7 {[%emt 0:01:39]} 35. Rc2 {[%emt 0:00:48]} Rg6+ {[%emt 0:00:55]} 36. Rg3 {[%emt 0:00:19]} Rxg3+ {[%emt 0:00:58]} 37. fxg3 {[%emt 0:00:02]} Bd3 {[%emt 0:00:00]} 38. Rd2 {[%emt 0:01:26]} Bxe4 {[%emt 0:00:15]} 39. Be2 {[%emt 0:00:20]} Rf7 {[%emt 0:00:58]} 40. a5 {[%emt 0:00:20]} Re7 {[%emt 0:00:45]} 41. Kf2 {[%emt 0:00:09]} Kg6 {[%emt 0:00:31]} 42. Ke3 {[%emt 0:00:04]} Bf5 {[%emt 0:00:18]} 43. Rd6+ {[%emt 0:00:18]} Kf7 {[%emt 0:00:38]} 44. Bc4+ {[%emt 0:01:09]} Be6 {[%emt 0:00:30]} 45. Bxe6+ {[%emt 0:01:46]} Rxe6 {[%emt 0:00:01]} 46. Rd8 {[%emt 0:00:09]} e4 {[%emt 0:00:58]} 47. Rb8 {[%emt 0:00:45]} b6 {[%emt 0:00:35]} 48. a6 {[%emt 0:00:21]} Re7 {[%emt 0:00:22]} 49. Rc8 {[%emt 0:00:22]} Ke6 {[%emt 0:00:40]} 50. Rd8 {[%emt 0:00:11]} Ke5 {[%emt 0:00:30]} 51. Rd4 {[%emt 0:00:31]} Kf5 {[%emt 0:00:19]} 52. Rd8 {[%emt 0:00:13]} h5 {[%emt 0:00:40]} 53. Rf8+ {[%emt 0:00:17]} Kg4 {[%emt 0:00:20]} 54. Rb8 {[%emt 0:00:03]} g5 {[%emt 0:00:17]} 55. Rb7 {[%emt 0:00:20]} Re5 {[%emt 0:00:02]} 56. Rxa7 {[%emt 0:00:20]} Rxb5 {[%emt 0:00:01]} 57. Rb7 {[%emt 0:00:30]} Kxg3 {[%emt 0:00:31]} 58. Kxe4 {[%emt 0:00:10]} h4 {[%emt 0:00:30]} 59. Rg7 {[%emt 0:00:13]} g4 {[%emt 0:00:29]} 60. Rd7 {[%emt 0:00:26]} Ra5 {[%emt 0:00:38]} 61. a7 {[%emt 0:00:13]} h3 {[%emt 0:00:19]} 62. Rd3+ {[%emt 0:00:07]} Kh4 {[%emt 0:00:32]} 63. Rd7 {[%emt 0:00:06]} h2 {[%emt 0:00:42]} 64. Ke3 {[%emt 0:00:16]} h1=Q {[%emt 0:00:15]} 65. Rh7+ {[%emt 0:00:05]} Rh5 {[%emt 0:00:04]} 66. Kd4 {[%emt 0:00:40]} 0-1